{"text_format":"1","workbook":"xlsx","n_sheets":10,"sheets":["Instructions","Audit Tool","March 2017","April 2017","May 2017","June 2017","July 2017","Aug 2017","Blank 1","Blank 2"],"not_rendered":{"charts":1,"images":4,"macros":1,"external_links":0,"defined_names":7,"comments":0,"pivot_tables":0},"unopened":[],"bounds":{"document_bytes":16777216,"sheet_cells":100000,"rows_first":2000,"rows_last":500,"rows_between":2000,"halvings":0,"cell_chars":16384,"cell_head_chars":4096},"cells_cut":0,"cells_raw":0,"read":"whole","date_system":"1900"}

{"sheet":"Instructions","index":0,"n_rows":36,"n_cols":13,"rows_kept":36,"cut":false,"hidden":false,"merged":[[18,1,19,10],[21,1,21,3],[35,2,35,4],[0,0,0,12],[22,12,22,14],[20,1,20,7],[1,11,3,13]]}
["INSTRUCTIONS FOR COMPLETING PIVFAIT - AUDIT TOOL"]
[null,null,"Date of the audit",null,null,null,null,null,null,null,null,"When data has been completed and entered into the monthly sheets, press Delete button to clear the sheet, ready for next audit."]
[]
[]
[]
[null,null,null,null,null,null,null,null,null,null,"Ward being audited"]
[]
[]
[]
[]
[]
[]
[]
[null,null,null,null,null,null,null,null,null,null,null,null,"Enter 1 (Yes) OR 0 (No)"]
[null,null,null,null,null,null,null,null,null,null,null,null,"As you answer each question, the percentage compliance will automatically be completed for you."]
[]
[]
[]
[null,"Total number of patients audited and number fully compliant will be completed automatically as you populate the spreadsheet. "]
[]
[null,"Then enter these 2 numbers into the monthly spread sheet - for each ward audited.",null,null,null,null,null,null,"Total number audited in the \"Obs\" column"]
[null,null,null,null,null,null,null,null,"Total number fully compliant in the \"Com\" column "]
[]
[]
[]
[]
[]
[]
[]
[]
[]
[]
[]
[]
[]
[null,null,"Automatically completed as you enter data"]

{"sheet":"Audit Tool","index":1,"n_rows":42,"n_cols":18,"rows_kept":42,"cut":false,"hidden":false,"merged":[[0,0,0,4],[18,7,18,9],[1,2,1,4],[2,8,2,9],[2,0,2,1],[2,3,2,4],[0,8,1,9],[7,15,8,15],[18,0,18,2],[4,2,4,3],[4,6,4,7],[7,1,7,9],[5,10,7,10],[18,4,18,6]]}
["Paediatric Intravenous Fluid Audit Implementation Tool"]
[null,"Date",null,null,null,null,"Ward/Dept"]
[]
[null,1,2,3,4,5,6,7,8,9]
["Q","Patient identification","Glucose Monitoring     ",null,"Cumulative input and output totalling and fluid balance. ","Patient weight    ","DFBC calculation guidance completed.",null,"Electrolyte monitoring","12 hour assessment."]
[null,"Are ALL the following patient identifiers provided on both sides of the DFBC?                             .                              .                                                           1. Full Name              2. Date of birth                 3. Hospital number","While the child is receiving IV fluids,                     .                                                 is there a Blood Glucose result recorded on the DFBC,                              .                                                                            .                                                     (in accordance with the  2017 Paediatric Therapy Wallchart)                                  .                                        i.e. at least 12 hourly?   ","Were ALL            Blood Glucose measurements greater than 3mmol/L?                .                                  .                                 If answer = No; Enter Hospital Number of those below 3mmol/L for Trust audit dept. to check for treatment.      ","Are ALL of the following amounts (in mls) recorded on the DFBC?                                  .                                                    1. Oral/IV amounts, (all administered types of intake to be recorded).                          2. Day and night totals.                           3. Grand Total IN                 4. Grand Total OUT             5. 24 hour Fluid Balance                                               ","Is there a patient weight in kgs, given on the DFBC?","Are the appropriate calculation guidance sections for the IV therapy completed?","Are there coded indications for the fluid administration provided?","Is there an E&U result recorded on the DFBC,           .                                                                                (in accordance with the 2017 Paediatric Therapy  Wallchart)?","When IV fluids are administered for longer than 12 hours.                                                  .                                                                                                                          is there a 12 hour Reassessment  box* appropriately completed on the DFBC with an answer to the question:                               .                                             .                                     Is the infusion prescription  still suitable - followed by a doctors signature?                 .            * Can be 10 - 14 hours      .                                                                                                    ","Compliance %"]
[]
["Name or Number","Record Yes = 1 , No = 0 (the only possible entries are either a 1 or a 0)",null,null,null,null,null,null,null,null,null,null,null,null,null,null,null,1]
[1,null,null,null,null,null,null,null,null,null,{"$f":"SUM(B9:J9)/9*100","v":0},null,null,null,null,null,null,0]
[2,null,null,null,null,null,null,null,null,null,{"$f":"SUM(B10:J10)/9*100","v":0}]
[3,null,null,null,null,null,null,null,null,null,0]
[4,null,null,null,null,null,null,null,null,null,0]
[5,null,null,null,null,null,null,null,null,null,0]
[6,null,null,null,null,null,null,null,null,null,0]
[7,null,null,null,null,null,null,null,null,null,0]
[8,null,null,null,null,null,null,null,null,null,0]
[9,null,null,null,null,null,null,null,null,null,0]
[10,null,null,null,null,null,null,null,null,null,0]
["Total Audits = Obs =",null,null,{"$f":"COUNTA(B9:B19)","v":0},"Paediatric Version V0.13 July 2016",null,null,"Total number fully Compliant = Com = ",null,null,{"$f":"COUNTIF(K9:K18,\"100\")","v":0}]
[]
["Number of Charts completed",{"$f":"COUNT(B9:B18)","v":0},{"$f":"COUNT(C9:C18)","v":0},0,0,0,0,0,0,0]
["Number of compliant cases",{"$f":"COUNTIF(B9:B18,\"1\")","v":0},{"$f":"COUNTIF(C9:C18,\"1\")","v":0},0,0,0,0,0,0,0]
[null,{"$f":"B22/B21*100","v":{"$error":"#DIV/0!"}},{"$f":"C22/C21*100","v":{"$error":"#DIV/0!"}},{"$error":"#DIV/0!"},{"$error":"#DIV/0!"},{"$error":"#DIV/0!"},{"$error":"#DIV/0!"},{"$error":"#DIV/0!"},{"$error":"#DIV/0!"},{"$error":"#DIV/0!"}]
[]
[]
[]
[]
[]
[]
[]
[]
[]
[]
[]
[]
[]
[]
[]
[]
[null,null,null,null,null,null,null,null,null,"Total number of charts completed",{"$f":"COUNT(B9:B18)","v":0}]
[]
[null,null,null,null,null,null,null,null,null,"Total fully compliant",{"$f":"COUNTIF(K9:K18,\"100\")","v":0}]

{"sheet":"March 2017","index":2,"n_rows":15,"n_cols":16,"rows_kept":15,"cut":false,"hidden":false,"merged":[[3,1,3,3],[3,4,3,6],[3,7,3,9],[3,10,3,12],[3,13,3,15]]}
[]
["Fluid Balance Results for March 2017"]
[]
["FLUID BALANCE PRESCRIPTION CHART ","2017-03-06",null,null,"2017-03-13",null,null,"2017-03-20",null,null,"2017-03-27"]
[null,"Obs","Com","Total","Obs","Com","Total","Obs","Com","Total","Obs","Com","Total","Obs","Com","Total"]
[null,null,null,{"$f":"(C6/B6)*100","v":{"$error":"#DIV/0!"}},null,null,{"$f":"(F6/E6)*100","v":{"$error":"#DIV/0!"}},null,null,{"$f":"(I6/H6)*100","v":{"$error":"#DIV/0!"}},null,null,{"$f":"(L6/K6)*100","v":{"$error":"#DIV/0!"}},null,null,{"$f":"(O6/N6)*100","v":{"$error":"#DIV/0!"}}]
[null,null,null,{"$error":"#DIV/0!"},null,null,{"$error":"#DIV/0!"},null,null,{"$error":"#DIV/0!"},null,null,{"$error":"#DIV/0!"},null,null,{"$error":"#DIV/0!"}]
[null,null,null,{"$error":"#DIV/0!"},null,null,{"$error":"#DIV/0!"},null,null,{"$error":"#DIV/0!"},null,null,{"$error":"#DIV/0!"},null,null,{"$error":"#DIV/0!"}]
[null,null,null,{"$error":"#DIV/0!"},null,null,{"$error":"#DIV/0!"},null,null,{"$error":"#DIV/0!"},null,null,{"$error":"#DIV/0!"},null,null,{"$error":"#DIV/0!"}]
[null,null,null,{"$error":"#DIV/0!"},null,null,{"$error":"#DIV/0!"},null,null,{"$error":"#DIV/0!"},null,null,{"$error":"#DIV/0!"},null,null,{"$error":"#DIV/0!"}]
[null,null,null,{"$error":"#DIV/0!"},null,null,{"$error":"#DIV/0!"},null,null,{"$error":"#DIV/0!"},null,null,{"$error":"#DIV/0!"},null,null,{"$error":"#DIV/0!"}]
[]
["Weekly Total",{"$f":"SUM(B6:B11)","v":0},{"$f":"SUM(C6:C11)","v":0},null,{"$f":"SUM(E6:E11)","v":0},{"$f":"SUM(F6:F11)","v":0},null,{"$f":"SUM(H6:H11)","v":0},{"$f":"SUM(I6:I11)","v":0},null,{"$f":"SUM(K6:K11)","v":0},{"$f":"SUM(L6:L11)","v":0},null,{"$f":"SUM(N6:N11)","v":0},{"$f":"SUM(O6:O11)","v":0}]
[]
["Monthly Total",{"$f":"SUM(B13,E13,H13,K13,N13)","v":0},{"$f":"SUM(C13,F13,I13,L13,O13)","v":0}]

{"sheet":"April 2017","index":3,"n_rows":15,"n_cols":16,"rows_kept":15,"cut":false,"hidden":false,"merged":[[3,1,3,3],[3,4,3,6],[3,7,3,9],[3,10,3,12],[3,13,3,15]]}
[]
["Fluid Balance Results for April 2017"]
[]
["FLUID BALANCE PRESCRIPTION CHART ","2017-04-03",null,null,"2017-04-10",null,null,"2017-04-17",null,null,"2017-04-24"]
[null,"Obs","Com","Total","Obs","Com","Total","Obs","Com","Total","Obs","Com","Total","Obs","Com","Total"]
[null,null,null,{"$f":"(C6/B6)*100","v":{"$error":"#DIV/0!"}},null,null,{"$f":"(F6/E6)*100","v":{"$error":"#DIV/0!"}},null,null,{"$f":"(I6/H6)*100","v":{"$error":"#DIV/0!"}},null,null,{"$f":"(L6/K6)*100","v":{"$error":"#DIV/0!"}},null,null,{"$f":"(O6/N6)*100","v":{"$error":"#DIV/0!"}}]
[null,null,null,{"$error":"#DIV/0!"},null,null,{"$error":"#DIV/0!"},null,null,{"$error":"#DIV/0!"},null,null,{"$error":"#DIV/0!"},null,null,{"$error":"#DIV/0!"}]
[null,null,null,{"$error":"#DIV/0!"},null,null,{"$error":"#DIV/0!"},null,null,{"$error":"#DIV/0!"},null,null,{"$error":"#DIV/0!"},null,null,{"$error":"#DIV/0!"}]
[null,null,null,{"$error":"#DIV/0!"},null,null,{"$error":"#DIV/0!"},null,null,{"$error":"#DIV/0!"},null,null,{"$error":"#DIV/0!"},null,null,{"$error":"#DIV/0!"}]
[null,null,null,{"$error":"#DIV/0!"},null,null,{"$error":"#DIV/0!"},null,null,{"$error":"#DIV/0!"},null,null,{"$error":"#DIV/0!"},null,null,{"$error":"#DIV/0!"}]
[null,null,null,{"$error":"#DIV/0!"},null,null,{"$error":"#DIV/0!"},null,null,{"$error":"#DIV/0!"},null,null,{"$error":"#DIV/0!"},null,null,{"$error":"#DIV/0!"}]
[]
["Weekly Total",{"$f":"SUM(B6:B11)","v":0},{"$f":"SUM(C6:C11)","v":0},null,{"$f":"SUM(E6:E11)","v":0},{"$f":"SUM(F6:F11)","v":0},null,{"$f":"SUM(H6:H11)","v":0},{"$f":"SUM(I6:I11)","v":0},null,{"$f":"SUM(K6:K11)","v":0},{"$f":"SUM(L6:L11)","v":0},null,{"$f":"SUM(N6:N11)","v":0},{"$f":"SUM(O6:O11)","v":0}]
[]
["Monthly Total",{"$f":"SUM(B13,E13,H13,K13,N13)","v":0},{"$f":"SUM(C13,F13,I13,L13,O13)","v":0}]

{"sheet":"May 2017","index":4,"n_rows":15,"n_cols":16,"rows_kept":15,"cut":false,"hidden":false,"merged":[[3,1,3,3],[3,4,3,6],[3,7,3,9],[3,10,3,12],[3,13,3,15]]}
[]
["Fluid Balance Results for May 2017"]
[]
["FLUID BALANCE PRESCRIPTION CHART ","2017-05-01",null,null,"2017-05-08",null,null,"2017-05-15",null,null,"2017-05-22",null,null,"2017-05-29"]
[null,"Obs","Com","Total","Obs","Com","Total","Obs","Com","Total","Obs","Com","Total","Obs","Com","Total"]
[null,null,null,{"$f":"(C6/B6)*100","v":{"$error":"#DIV/0!"}},null,null,{"$f":"(F6/E6)*100","v":{"$error":"#DIV/0!"}},null,null,{"$f":"(I6/H6)*100","v":{"$error":"#DIV/0!"}},null,null,{"$f":"(L6/K6)*100","v":{"$error":"#DIV/0!"}},null,null,{"$f":"(O6/N6)*100","v":{"$error":"#DIV/0!"}}]
[null,null,null,{"$error":"#DIV/0!"},null,null,{"$error":"#DIV/0!"},null,null,{"$error":"#DIV/0!"},null,null,{"$error":"#DIV/0!"},null,null,{"$error":"#DIV/0!"}]
[null,null,null,{"$error":"#DIV/0!"},null,null,{"$error":"#DIV/0!"},null,null,{"$error":"#DIV/0!"},null,null,{"$error":"#DIV/0!"},null,null,{"$error":"#DIV/0!"}]
[null,null,null,{"$error":"#DIV/0!"},null,null,{"$error":"#DIV/0!"},null,null,{"$error":"#DIV/0!"},null,null,{"$error":"#DIV/0!"},null,null,{"$error":"#DIV/0!"}]
[null,null,null,{"$error":"#DIV/0!"},null,null,{"$error":"#DIV/0!"},null,null,{"$error":"#DIV/0!"},null,null,{"$error":"#DIV/0!"},null,null,{"$error":"#DIV/0!"}]
[null,null,null,{"$error":"#DIV/0!"},null,null,{"$error":"#DIV/0!"},null,null,{"$error":"#DIV/0!"},null,null,{"$error":"#DIV/0!"},null,null,{"$error":"#DIV/0!"}]
[]
["Weekly Total",{"$f":"SUM(B6:B11)","v":0},{"$f":"SUM(C6:C11)","v":0},null,{"$f":"SUM(E6:E11)","v":0},{"$f":"SUM(F6:F11)","v":0},null,{"$f":"SUM(H6:H11)","v":0},{"$f":"SUM(I6:I11)","v":0},null,{"$f":"SUM(K6:K11)","v":0},{"$f":"SUM(L6:L11)","v":0},null,{"$f":"SUM(N6:N11)","v":0},{"$f":"SUM(O6:O11)","v":0}]
[]
["Monthly Total",{"$f":"SUM(B13,E13,H13,K13,N13)","v":0},{"$f":"SUM(C13,F13,I13,L13,O13)","v":0}]

{"sheet":"June 2017","index":5,"n_rows":15,"n_cols":16,"rows_kept":15,"cut":false,"hidden":false,"merged":[[3,1,3,3],[3,4,3,6],[3,7,3,9],[3,10,3,12],[3,13,3,15]]}
[]
["Fluid Balance Results for June 2017"]
[]
["FLUID BALANCE PRESCRIPTION CHART ","2017-06-05",null,null,"2017-06-12",null,null,"2017-06-19",null,null,"2017-06-26"]
[null,"Obs","Com","Total","Obs","Com","Total","Obs","Com","Total","Obs","Com","Total","Obs","Com","Total"]
[null,null,null,{"$f":"(C6/B6)*100","v":{"$error":"#DIV/0!"}},null,null,{"$f":"(F6/E6)*100","v":{"$error":"#DIV/0!"}},null,null,{"$f":"(I6/H6)*100","v":{"$error":"#DIV/0!"}},null,null,{"$f":"(L6/K6)*100","v":{"$error":"#DIV/0!"}},null,null,{"$f":"(O6/N6)*100","v":{"$error":"#DIV/0!"}}]
[null,null,null,{"$error":"#DIV/0!"},null,null,{"$error":"#DIV/0!"},null,null,{"$error":"#DIV/0!"},null,null,{"$error":"#DIV/0!"},null,null,{"$error":"#DIV/0!"}]
[null,null,null,{"$error":"#DIV/0!"},null,null,{"$error":"#DIV/0!"},null,null,{"$error":"#DIV/0!"},null,null,{"$error":"#DIV/0!"},null,null,{"$error":"#DIV/0!"}]
[null,null,null,{"$error":"#DIV/0!"},null,null,{"$error":"#DIV/0!"},null,null,{"$error":"#DIV/0!"},null,null,{"$error":"#DIV/0!"},null,null,{"$error":"#DIV/0!"}]
[null,null,null,{"$error":"#DIV/0!"},null,null,{"$error":"#DIV/0!"},null,null,{"$error":"#DIV/0!"},null,null,{"$error":"#DIV/0!"},null,null,{"$error":"#DIV/0!"}]
[null,null,null,{"$error":"#DIV/0!"},null,null,{"$error":"#DIV/0!"},null,null,{"$error":"#DIV/0!"},null,null,{"$error":"#DIV/0!"},null,null,{"$error":"#DIV/0!"}]
[]
["Weekly Total",{"$f":"SUM(B6:B11)","v":0},{"$f":"SUM(C6:C11)","v":0},null,{"$f":"SUM(E6:E11)","v":0},{"$f":"SUM(F6:F11)","v":0},null,{"$f":"SUM(H6:H11)","v":0},{"$f":"SUM(I6:I11)","v":0},null,{"$f":"SUM(K6:K11)","v":0},{"$f":"SUM(L6:L11)","v":0},null,{"$f":"SUM(N6:N11)","v":0},{"$f":"SUM(O6:O11)","v":0}]
[]
["Monthly Total",{"$f":"SUM(B13,E13,H13,K13,N13)","v":0},{"$f":"SUM(C13,F13,I13,L13,O13)","v":0}]

{"sheet":"July 2017","index":6,"n_rows":15,"n_cols":16,"rows_kept":15,"cut":false,"hidden":false,"merged":[[3,1,3,3],[3,4,3,6],[3,7,3,9],[3,10,3,12],[3,13,3,15]]}
[]
["Fluid Balance Results for July 2017"]
[]
["FLUID BALANCE PRESCRIPTION CHART ","2017-07-03",null,null,"2017-07-10",null,null,"2017-07-17",null,null,"2017-07-24",null,null,"2017-07-31"]
[null,"Obs","Com","Total","Obs","Com","Total","Obs","Com","Total","Obs","Com","Total","Obs","Com","Total"]
[null,null,null,{"$f":"(C6/B6)*100","v":{"$error":"#DIV/0!"}},null,null,{"$f":"(F6/E6)*100","v":{"$error":"#DIV/0!"}},null,null,{"$f":"(I6/H6)*100","v":{"$error":"#DIV/0!"}},null,null,{"$f":"(L6/K6)*100","v":{"$error":"#DIV/0!"}},null,null,{"$f":"(O6/N6)*100","v":{"$error":"#DIV/0!"}}]
[null,null,null,{"$error":"#DIV/0!"},null,null,{"$error":"#DIV/0!"},null,null,{"$error":"#DIV/0!"},null,null,{"$error":"#DIV/0!"},null,null,{"$error":"#DIV/0!"}]
[null,null,null,{"$error":"#DIV/0!"},null,null,{"$error":"#DIV/0!"},null,null,{"$error":"#DIV/0!"},null,null,{"$error":"#DIV/0!"},null,null,{"$error":"#DIV/0!"}]
[null,null,null,{"$error":"#DIV/0!"},null,null,{"$error":"#DIV/0!"},null,null,{"$error":"#DIV/0!"},null,null,{"$error":"#DIV/0!"},null,null,{"$error":"#DIV/0!"}]
[null,null,null,{"$error":"#DIV/0!"},null,null,{"$error":"#DIV/0!"},null,null,{"$error":"#DIV/0!"},null,null,{"$error":"#DIV/0!"},null,null,{"$error":"#DIV/0!"}]
[null,null,null,{"$error":"#DIV/0!"},null,null,{"$error":"#DIV/0!"},null,null,{"$error":"#DIV/0!"},null,null,{"$error":"#DIV/0!"},null,null,{"$error":"#DIV/0!"}]
[]
["Weekly Total",{"$f":"SUM(B6:B11)","v":0},{"$f":"SUM(C6:C11)","v":0},null,{"$f":"SUM(E6:E11)","v":0},{"$f":"SUM(F6:F11)","v":0},null,{"$f":"SUM(H6:H11)","v":0},{"$f":"SUM(I6:I11)","v":0},null,{"$f":"SUM(K6:K11)","v":0},{"$f":"SUM(L6:L11)","v":0},null,{"$f":"SUM(N6:N11)","v":0},{"$f":"SUM(O6:O11)","v":0}]
[]
["Monthly Total",{"$f":"SUM(B13,E13,H13,K13,N13)","v":0},{"$f":"SUM(C13,F13,I13,L13,O13)","v":0}]

{"sheet":"Aug 2017","index":7,"n_rows":15,"n_cols":16,"rows_kept":15,"cut":false,"hidden":false,"merged":[[3,1,3,3],[3,4,3,6],[3,7,3,9],[3,10,3,12],[3,13,3,15]]}
[]
["Fluid Balance Results for August 2017"]
[]
["FLUID BALANCE PRESCRIPTION CHART ","2017-08-07",null,null,"2017-08-14",null,null,"2017-08-21",null,null,"2017-08-28"]
[null,"Obs","Com","Total","Obs","Com","Total","Obs","Com","Total","Obs","Com","Total","Obs","Com","Total"]
[null,null,null,{"$f":"(C6/B6)*100","v":{"$error":"#DIV/0!"}},null,null,{"$f":"(F6/E6)*100","v":{"$error":"#DIV/0!"}},null,null,{"$f":"(I6/H6)*100","v":{"$error":"#DIV/0!"}},null,null,{"$f":"(L6/K6)*100","v":{"$error":"#DIV/0!"}},null,null,{"$f":"(O6/N6)*100","v":{"$error":"#DIV/0!"}}]
[null,null,null,{"$error":"#DIV/0!"},null,null,{"$error":"#DIV/0!"},null,null,{"$error":"#DIV/0!"},null,null,{"$error":"#DIV/0!"},null,null,{"$error":"#DIV/0!"}]
[null,null,null,{"$error":"#DIV/0!"},null,null,{"$error":"#DIV/0!"},null,null,{"$error":"#DIV/0!"},null,null,{"$error":"#DIV/0!"},null,null,{"$error":"#DIV/0!"}]
[null,null,null,{"$error":"#DIV/0!"},null,null,{"$error":"#DIV/0!"},null,null,{"$error":"#DIV/0!"},null,null,{"$error":"#DIV/0!"},null,null,{"$error":"#DIV/0!"}]
[null,null,null,{"$error":"#DIV/0!"},null,null,{"$error":"#DIV/0!"},null,null,{"$error":"#DIV/0!"},null,null,{"$error":"#DIV/0!"},null,null,{"$error":"#DIV/0!"}]
[null,null,null,{"$error":"#DIV/0!"},null,null,{"$error":"#DIV/0!"},null,null,{"$error":"#DIV/0!"},null,null,{"$error":"#DIV/0!"},null,null,{"$error":"#DIV/0!"}]
[]
["Weekly Total",{"$f":"SUM(B6:B11)","v":0},{"$f":"SUM(C6:C11)","v":0},null,{"$f":"SUM(E6:E11)","v":0},{"$f":"SUM(F6:F11)","v":0},null,{"$f":"SUM(H6:H11)","v":0},{"$f":"SUM(I6:I11)","v":0},null,{"$f":"SUM(K6:K11)","v":0},{"$f":"SUM(L6:L11)","v":0},null,{"$f":"SUM(N6:N11)","v":0},{"$f":"SUM(O6:O11)","v":0}]
[]
["Monthly Total",{"$f":"SUM(B13,E13,H13,K13,N13)","v":0},{"$f":"SUM(C13,F13,I13,L13,O13)","v":0}]

{"sheet":"Blank 1","index":8,"n_rows":15,"n_cols":16,"rows_kept":15,"cut":false,"hidden":false,"merged":[[3,1,3,3],[3,4,3,6],[3,7,3,9],[3,10,3,12],[3,13,3,15]]}
[]
["Fluid Balance Results for "]
[]
["FLUID BALANCE PRESCRIPTION CHART "]
[null,"Obs","Com","Total","Obs","Com","Total","Obs","Com","Total","Obs","Com","Total","Obs","Com","Total"]
[null,null,null,{"$f":"(C6/B6)*100","v":{"$error":"#DIV/0!"}},null,null,{"$f":"(F6/E6)*100","v":{"$error":"#DIV/0!"}},null,null,{"$f":"(I6/H6)*100","v":{"$error":"#DIV/0!"}},null,null,{"$f":"(L6/K6)*100","v":{"$error":"#DIV/0!"}},null,null,{"$f":"(O6/N6)*100","v":{"$error":"#DIV/0!"}}]
[null,null,null,{"$error":"#DIV/0!"},null,null,{"$error":"#DIV/0!"},null,null,{"$error":"#DIV/0!"},null,null,{"$error":"#DIV/0!"},null,null,{"$error":"#DIV/0!"}]
[null,null,null,{"$error":"#DIV/0!"},null,null,{"$error":"#DIV/0!"},null,null,{"$error":"#DIV/0!"},null,null,{"$error":"#DIV/0!"},null,null,{"$error":"#DIV/0!"}]
[null,null,null,{"$error":"#DIV/0!"},null,null,{"$error":"#DIV/0!"},null,null,{"$error":"#DIV/0!"},null,null,{"$error":"#DIV/0!"},null,null,{"$error":"#DIV/0!"}]
[null,null,null,{"$error":"#DIV/0!"},null,null,{"$error":"#DIV/0!"},null,null,{"$error":"#DIV/0!"},null,null,{"$error":"#DIV/0!"},null,null,{"$error":"#DIV/0!"}]
[null,null,null,{"$error":"#DIV/0!"},null,null,{"$error":"#DIV/0!"},null,null,{"$error":"#DIV/0!"},null,null,{"$error":"#DIV/0!"},null,null,{"$error":"#DIV/0!"}]
[]
["Weekly Total",{"$f":"SUM(B6:B11)","v":0},{"$f":"SUM(C6:C11)","v":0},null,{"$f":"SUM(E6:E11)","v":0},{"$f":"SUM(F6:F11)","v":0},null,{"$f":"SUM(H6:H11)","v":0},{"$f":"SUM(I6:I11)","v":0},null,{"$f":"SUM(K6:K11)","v":0},{"$f":"SUM(L6:L11)","v":0},null,{"$f":"SUM(N6:N11)","v":0},{"$f":"SUM(O6:O11)","v":0}]
[]
["Monthly Total",{"$f":"SUM(B13,E13,H13,K13,N13)","v":0},{"$f":"SUM(C13,F13,I13,L13,O13)","v":0}]

{"sheet":"Blank 2","index":9,"n_rows":15,"n_cols":16,"rows_kept":15,"cut":false,"hidden":false,"merged":[[3,1,3,3],[3,4,3,6],[3,7,3,9],[3,10,3,12],[3,13,3,15]]}
[]
["Fluid Balance Results for "]
[]
["FLUID BALANCE PRESCRIPTION CHART "]
[null,"Obs","Com","Total","Obs","Com","Total","Obs","Com","Total","Obs","Com","Total","Obs","Com","Total"]
[null,null,null,{"$f":"(C6/B6)*100","v":{"$error":"#DIV/0!"}},null,null,{"$f":"(F6/E6)*100","v":{"$error":"#DIV/0!"}},null,null,{"$f":"(I6/H6)*100","v":{"$error":"#DIV/0!"}},null,null,{"$f":"(L6/K6)*100","v":{"$error":"#DIV/0!"}},null,null,{"$f":"(O6/N6)*100","v":{"$error":"#DIV/0!"}}]
[null,null,null,{"$error":"#DIV/0!"},null,null,{"$error":"#DIV/0!"},null,null,{"$error":"#DIV/0!"},null,null,{"$error":"#DIV/0!"},null,null,{"$error":"#DIV/0!"}]
[null,null,null,{"$error":"#DIV/0!"},null,null,{"$error":"#DIV/0!"},null,null,{"$error":"#DIV/0!"},null,null,{"$error":"#DIV/0!"},null,null,{"$error":"#DIV/0!"}]
[null,null,null,{"$error":"#DIV/0!"},null,null,{"$error":"#DIV/0!"},null,null,{"$error":"#DIV/0!"},null,null,{"$error":"#DIV/0!"},null,null,{"$error":"#DIV/0!"}]
[null,null,null,{"$error":"#DIV/0!"},null,null,{"$error":"#DIV/0!"},null,null,{"$error":"#DIV/0!"},null,null,{"$error":"#DIV/0!"},null,null,{"$error":"#DIV/0!"}]
[null,null,null,{"$error":"#DIV/0!"},null,null,{"$error":"#DIV/0!"},null,null,{"$error":"#DIV/0!"},null,null,{"$error":"#DIV/0!"},null,null,{"$error":"#DIV/0!"}]
[]
["Weekly Total",{"$f":"SUM(B6:B11)","v":0},{"$f":"SUM(C6:C11)","v":0},null,{"$f":"SUM(E6:E11)","v":0},{"$f":"SUM(F6:F11)","v":0},null,{"$f":"SUM(H6:H11)","v":0},{"$f":"SUM(I6:I11)","v":0},null,{"$f":"SUM(K6:K11)","v":0},{"$f":"SUM(L6:L11)","v":0},null,{"$f":"SUM(N6:N11)","v":0},{"$f":"SUM(O6:O11)","v":0}]
[]
["Monthly Total",{"$f":"SUM(B13,E13,H13,K13,N13)","v":0},{"$f":"SUM(C13,F13,I13,L13,O13)","v":0}]